bitfinex/quotes_BTCUSD_20241119
["timestamp","ask_amount","ask_price","bid_price","bid_amount"]
[1732039125836,0.1,92687.0,92677.0,0.107901]
[1732039126134,0.207889,92688.0,92675.0,0.0017098]
[1732039126333,0.1,92686.0,92675.0,0.1096128]
[1732039126502,0.023,92689.0,92675.0,0.0017098]
[1732039126708,0.023,92689.0,92677.0,0.107901]
[1732039127123,0.107888,92688.0,92675.0,0.1096128]
[1732039127295,0.0437576,92690.0,92675.0,0.0017098]
[1732039127541,0.18577429,92710.0,92676.0,0.10906255]
[1732039127726,0.10906255,92717.0,92685.0,0.0491]
[1732039127925,0.10906255,92717.0,92702.0,0.107871]
[1732039128141,0.0008558,92718.0,92687.0,0.107889]
[1732039128369,0.0008558,92718.0,92688.0,0.11906255]
[1732039128572,0.0008558,92718.0,92707.0,0.107865]
[1732039128573,0.04406942,92718.0,92707.0,0.107865]
[1732039128776,0.04406942,92718.0,92704.0,0.107869]
[1732039128977,0.107855,92717.0,92706.0,0.107867]
[1732039129385,0.04406942,92718.0,92707.0,0.107865]
[1732039129583,0.04406942,92718.0,92693.0,0.107882]
[1732039129845,0.323565,92717.0,92694.0,0.107881]
[1732039129976,0.107857,92715.0,92705.0,0.107868]
[1732039130183,0.107857,92715.0,92706.0,0.107867]
[1732039130392,0.04406942,92718.0,92693.0,0.10906255]
[1732039130593,0.04406942,92718.0,92712.0,0.10786]
[1732039130817,0.04406942,92718.0,92714.0,0.107857]
[1732039131021,0.04406942,92718.0,92717.0,0.107855]
[1732039131221,0.04406942,92718.0,92697.0,0.107878]
[1732039131378,0.04406942,92718.0,92714.0,0.107857]
[1732039131580,0.04406942,92718.0,92711.0,0.107861]
[1732039132417,0.04406942,92718.0,92713.0,0.107859]
[1732039132835,0.04406942,92718.0,92714.0,0.107857]
[1732039133173,0.04406942,92718.0,92713.0,0.107859]
[1732039133370,0.00673182,92717.0,92713.0,0.107859]
[1732039133577,0.00673182,92716.0,92708.0,0.107865]
[1732039133785,0.00673182,92715.0,92712.0,0.10786]
[1732039133987,0.00673182,92714.0,92712.0,0.10786]
[1732039134215,0.04406942,92718.0,92712.0,0.10786]
[1732039134416,0.00673178,92717.0,92716.0,0.107856]
[1732039134646,0.00673178,92717.0,92712.0,0.10786]
[1732039134852,0.00673178,92717.0,92714.0,0.107858]
[1732039134991,0.00673178,92716.0,92714.0,0.107858]
[1732039135198,0.04406942,92718.0,92717.0,0.107855]
[1732039135393,0.05080106,92718.0,92711.0,0.107861]
[1732039135594,0.00673164,92717.0,92695.0,0.0771]
[1732039135819,0.215717,92714.0,92699.0,0.107875]
[1732039136213,0.00673164,92713.0,92701.0,0.107873]
[1732039136419,0.00720851,92716.0,92696.0,0.107878]
[1732039136420,0.00673164,92712.0,92702.0,0.107871]
[1732039136581,0.00720851,92712.0,92702.0,0.107871]
[1732039136795,0.11507151,92711.0,92703.0,0.107871]
[1732039136968,0.107863,92711.0,92703.0,0.107871]
[1732039137170,0.00673226,92710.0,92703.0,0.107871]
[1732039137375,0.00673226,92709.0,92702.0,0.107871]
[1732039137600,0.00673226,92709.0,92707.0,0.107866]
[1732039137601,0.00673226,92708.0,92707.0,0.107866]
[1732039138695,0.01394077,92708.0,92704.0,0.10787]
[1732039138896,0.00673226,92707.0,92701.0,0.107873]
[1732039139137,0.107862,92711.0,92703.0,0.10787]
[1732039139352,0.04406942,92718.0,92701.0,0.107873]
[1732039139580,0.107866,92708.0,92701.0,0.107872]
[1732039139800,0.018866,92708.0,92700.0,0.107874]
[1732039140041,0.215712,92716.0,92698.0,0.107876]
[1732039140258,0.215712,92716.0,92691.0,0.10906255]
[1732039140259,0.023,92717.0,92694.0,0.107881]
[1732039140448,0.023,92717.0,92701.0,0.107872]
[1732039140632,0.107869,92705.0,92698.0,0.107876]
[1732039140784,0.107869,92705.0,92686.0,0.10906255]
[1732039140785,0.0788,92716.0,92690.0,0.107885]
[1732039140995,0.1,92714.0,92686.0,0.10906255]
[1732039141204,0.1,92714.0,92691.0,0.107884]
[1732039141930,0.1,92714.0,92687.0,0.107889]
[1732039141931,0.107876,92699.0,92693.0,0.107882]
[1732039142160,0.023,92712.0,92694.0,0.107881]
[1732039142366,0.107874,92701.0,92694.0,0.107881]
[1732039142590,0.107874,92700.0,92694.0,0.107881]
[1732039142999,0.215724,92711.0,92678.0,0.01]
[1732039143189,0.0008558,92718.0,92694.0,0.10906255]
[1732039143394,0.0008558,92718.0,92695.0,0.21576]
[1732039143621,0.21571,92717.0,92694.0,0.10906255]
[1732039143836,0.107855,92717.0,92711.0,0.107861]
[1732039144048,0.107855,92717.0,92709.0,0.107863]
[1732039144049,0.0008558,92718.0,92712.0,0.10786]
[1732039144264,0.1087098,92718.0,92712.0,0.10786]
[1732039144508,0.0008558,92718.0,92717.0,0.107855]
[1732039146404,0.0008558,92718.0,92717.0,0.22691755]
[1732039146782,0.38845412,92764.0,92717.0,0.22691755]
[1732039146783,0.38845412,92764.0,92727.0,0.01]
[1732039146988,0.107801,92763.0,92729.0,0.107841]
[1732039147202,0.38845412,92774.0,92732.0,0.01]
[1732039147203,0.107807,92759.0,92732.0,0.01]
[1732039147402,0.18816255,92772.0,92733.0,0.10906255]
[1732039147640,0.215586,92770.0,92734.0,0.107835]
[1732039147812,0.107796,92768.0,92757.0,0.107808]
[1732039148060,0.1226588,92772.0,92735.0,0.21689655]
[1732039148061,0.107792,92771.0,92762.0,0.107802]
[1732039148309,0.323376,92771.0,92753.0,0.107812]
[1732039148511,0.215586,92770.0,92753.0,0.107812]
[1732039148714,0.107804,92761.0,92750.0,0.107816]
[1732039148938,0.323376,92771.0,92754.0,0.107811]
[1732039149173,0.1226588,92772.0,92754.0,0.107811]
[1732039149399,0.107799,92765.0,92756.0,0.107808]
[1732039149892,0.215591,92768.0,92754.0,0.107811]
[1732039150100,0.215596,92766.0,92755.0,0.10781]
[1732039150342,0.023,92771.0,92732.0,0.1]
[1732039150580,0.107813,92753.0,92744.0,0.107823]
[1732039150787,0.107811,92755.0,92746.0,0.107821]
[1732039150996,0.10906255,92770.0,92740.0,0.107827]
[1732039150997,0.10906255,92770.0,92740.0,0.10906255]
[1732039151207,0.215589,92769.0,92741.0,0.107827]
[1732039151416,0.215589,92769.0,92757.0,0.107808]
[1732039151417,0.32465155,92769.0,92757.0,0.107808]
[1732039151625,0.32465155,92769.0,92755.0,0.10781]
[1732039151626,0.1078,92764.0,92755.0,0.10781]
[1732039151868,0.107797,92767.0,92758.0,0.107807]
[1732039152072,0.107798,92766.0,92757.0,0.107808]
[1732039152285,0.01125255,92807.0,92755.0,0.10781]
[1732039152499,0.215573,92776.0,92740.0,0.10906255]
[1732039152703,0.60401812,92780.0,92716.0,0.107855]
[1732039152704,0.0435588,92772.0,92743.0,0.01]
[1732039152937,0.0435588,92772.0,92767.0,0.107795]
[1732039153157,0.0753,92783.0,92772.0,0.10779]
[1732039153364,0.0753,92783.0,92776.0,0.107785]
[1732039153626,0.215548,92787.0,92776.0,0.107785]
[1732039153627,0.215548,92787.0,92777.0,0.107784]
[1732039153833,0.04381243,92783.0,92782.0,0.107779]
[1732039154060,0.0775,92794.0,92788.0,0.107772]
[1732039154269,0.000855,92796.0,92762.0,0.0779]
[1732039154270,0.000855,92796.0,92764.0,0.1078]
[1732039154496,0.215528,92795.0,92765.0,0.10906255]
[1732039154715,0.107765,92794.0,92772.0,0.107791]
[1732039154934,0.04409883,92796.0,92764.0,0.10906255]
[1732039154935,0.10906255,92793.0,92764.0,0.10906255]
[1732039155399,0.107781,92781.0,92773.0,0.107789]
[1732039155612,0.10906255,92793.0,92779.0,0.107782]
[1732039155836,0.215547,92787.0,92776.0,0.107785]
[1732039156063,0.215549,92786.0,92773.0,0.107789]
[1732039156268,0.107774,92786.0,92779.0,0.107782]
[1732039156477,0.323302,92792.0,92778.0,0.107783]
[1732039156692,0.107776,92785.0,92768.0,0.107795]
[1732039156896,0.107776,92785.0,92779.0,0.107782]
[1732039157107,0.10906255,92793.0,92764.0,0.10906255]
[1732039157311,0.215538,92791.0,92764.0,0.10906255]
[1732039157540,0.10777,92790.0,92783.0,0.107777]
[1732039157748,0.1,92794.0,92766.0,0.107798]
[1732039157979,0.107769,92791.0,92768.0,0.21559]
[1732039158199,0.04409883,92796.0,92770.0,0.01]
[1732039158417,0.04409883,92796.0,92762.0,0.18577429]
[1732039158418,0.04409883,92796.0,92792.0,0.107767]
[1732039158623,0.04409883,92796.0,92772.0,0.182891]
[1732039158624,0.04409883,92796.0,92790.0,0.10777]
[1732039158847,0.04409883,92796.0,92780.0,0.107781]
[1732039159088,0.107767,92793.0,92773.0,0.10906255]
[1732039159367,0.215531,92794.0,92785.0,0.107775]
[1732039159573,0.04409883,92796.0,92792.0,0.107767]
[1732039159781,0.04409883,92796.0,92773.0,0.10906255]
[1732039160202,0.107767,92793.0,92786.0,0.107773]
[1732039160415,0.107767,92793.0,92774.0,0.107788]
[1732039160416,0.215531,92794.0,92780.0,0.10778]
[1732039160663,0.04409883,92796.0,92785.0,0.107775]
[1732039160664,0.107768,92792.0,92785.0,0.107775]
[1732039160879,0.10777,92790.0,92784.0,0.107776]
[1732039161321,0.04409883,92796.0,92786.0,0.107774]
[1732039161537,0.107766,92794.0,92786.0,0.107774]
[1732039161740,0.15186283,92796.0,92788.0,0.107771]
[1732039161867,0.107767,92793.0,92786.0,0.107774]
[1732039162073,0.15186183,92796.0,92789.0,0.107771]
[1732039162271,0.107767,92793.0,92785.0,0.107776]
[1732039162476,0.107767,92793.0,92786.0,0.107774]
[1732039162856,0.107767,92793.0,92781.0,0.10778]
[1732039162857,0.04409883,92796.0,92795.0,0.107764]
[1732039164521,0.000855,92796.0,92795.0,0.107764]
[1732039166404,0.000855,92796.0,92777.0,0.01]
[1732039166405,0.215532,92794.0,92774.0,0.1]
[1732039166629,0.215528,92795.0,92774.0,0.107788]
[1732039166827,0.000855,92796.0,92775.0,0.10906255]
[1732039167102,0.000855,92796.0,92790.0,0.107769]
[1732039167317,0.000855,92796.0,92795.0,0.107764]
[1732039169914,0.107745,92812.0,92805.0,0.107752]
[1732039170116,0.04334486,92815.0,92808.0,0.107749]
[1732039170304,0.0004,92819.0,92792.0,0.10906255]
[1732039170305,0.10774,92816.0,92807.0,0.107749]
[1732039170803,0.04350891,92819.0,92810.0,0.107745]
[1732039171024,0.1,92816.0,92810.0,0.107746]
[1732039171199,0.1,92816.0,92793.0,0.107766]
[1732039171349,0.0004,92819.0,92788.0,0.01]
[1732039171350,0.0004,92819.0,92810.0,0.107746]
[1732039171725,0.0004,92819.0,92795.0,0.107764]
[1732039172010,0.0004,92819.0,92797.0,0.107762]
[1732039172217,0.0004,92819.0,92818.0,0.107737]
[1732039173077,0.0004,92819.0,92817.0,0.107738]
[1732039173284,0.0004,92819.0,92815.0,0.107741]
[1732039173506,0.0004,92819.0,92818.0,0.107737]
[1732039175959,0.0004,92819.0,92816.0,0.107739]
[1732039176137,0.0004,92819.0,92814.0,0.107742]
[1732039176356,0.0004,92819.0,92818.0,0.107737]
[1732039176624,0.0004,92819.0,92818.0,0.21679955]
[1732039176830,0.0004,92819.0,92818.0,0.34145243]
[1732039177252,0.0012552,92819.0,92818.0,0.34145243]
[1732039177707,0.0012552,92819.0,92818.0,0.35145243]
[1732039178775,0.0012552,92819.0,92818.0,0.21679955]
[1732039179109,0.0012552,92819.0,92818.0,0.107737]
[1732039179952,0.0012552,92819.0,92812.0,0.09897857]
[1732039180159,0.0012552,92819.0,92818.0,0.107737]
[1732039180375,0.0012552,92819.0,92818.0,0.21679955]
[1732039180794,0.0012552,92819.0,92818.0,0.107737]
[1732039182084,0.0012552,92819.0,92817.0,0.107738]
[1732039182522,0.0012552,92819.0,92803.0,0.10906255]
[1732039182523,0.0012552,92819.0,92818.0,0.107737]
[1732039184887,0.04461838,92831.0,92818.0,0.107737]
[1732039185086,0.215445,92831.0,92815.0,0.10774]
[1732039185287,0.0005,92832.0,92815.0,0.10774]
[1732039185515,0.215457,92826.0,92817.0,0.107738]
[1732039185675,0.04447236,92832.0,92812.0,0.10906255]
[1732039185929,0.107727,92828.0,92821.0,0.107733]
[1732039186330,0.0005,92832.0,92812.0,0.10906255]
[1732039186599,0.0005,92832.0,92813.0,0.107743]
[1732039186750,0.0005,92832.0,92812.0,0.10906255]
[1732039186751,0.107725,92829.0,92818.0,0.107737]
[1732039186955,0.108222,92832.0,92812.0,0.10906255]
[1732039187159,0.0005,92832.0,92826.0,0.107727]
[1732039187358,0.107724,92830.0,92823.0,0.10773]
[1732039187570,0.0005,92832.0,92812.0,0.10906255]
[1732039187571,0.0005,92832.0,92831.0,0.107722]
[1732039189106,0.0013549,92832.0,92831.0,0.107722]
[1732039191581,0.0013549,92832.0,92831.0,0.21678455]
[1732039192664,0.0013549,92832.0,92831.0,0.107722]
[1732039193097,0.0013549,92832.0,92825.0,0.107728]
[1732039193307,0.0013549,92832.0,92806.0,0.0859]
[1732039193308,0.0013549,92832.0,92828.0,0.107725]
[1732039193513,0.0763,92831.0,92810.0,0.0017098]
[1732039193742,0.0013549,92832.0,92831.0,0.107722]
[1732039193940,0.0013549,92832.0,92811.0,0.10906255]
[1732039194144,0.0013549,92832.0,92814.0,0.107742]
[1732039194357,0.0013549,92832.0,92817.0,0.107738]
[1732039194358,0.107726,92828.0,92817.0,0.107738]
[1732039194558,0.215445,92831.0,92820.0,0.107735]
[1732039194797,0.0013549,92832.0,92817.0,0.10906255]
[1732039195007,0.0013549,92832.0,92826.0,0.107728]
[1732039195166,0.1090759,92832.0,92825.0,0.107728]
[1732039195395,0.0013549,92832.0,92827.0,0.107726]
[1732039195790,0.0013549,92832.0,92812.0,0.107744]
[1732039195791,0.215445,92831.0,92812.0,0.107744]
[1732039196031,0.215445,92831.0,92819.0,0.107736]
[1732039196032,0.107728,92826.0,92819.0,0.107736]
[1732039196243,0.0013549,92832.0,92821.0,0.107733]
[1732039196490,0.107727,92828.0,92821.0,0.107733]
[1732039196732,0.107728,92827.0,92820.0,0.107734]
[1732039196962,0.107725,92829.0,92821.0,0.107733]
[1732039197177,0.107722,92831.0,92825.0,0.107729]
[1732039197648,0.107726,92828.0,92822.0,0.107732]
[1732039197872,0.0013549,92832.0,92824.0,0.10773]
[1732039198074,0.107723,92831.0,92825.0,0.107729]
[1732039198274,0.107723,92831.0,92824.0,0.10773]
[1732039198539,0.107723,92831.0,92825.0,0.107729]
[1732039198812,0.1090759,92832.0,92819.0,0.107736]
[1732039199012,0.1090759,92832.0,92629.0,1.06161356]
[1732039199013,0.107723,92831.0,92814.0,0.10906255]
[1732039199246,0.0013549,92832.0,92824.0,0.10773]
[1732039199451,0.1090759,92832.0,92824.0,0.10773]
[1732039199788,0.04408778,92834.0,92822.0,0.107732]
[1732039200003,0.107725,92829.0,92822.0,0.107732]
[1732039200419,0.0005099,92859.0,92814.0,0.10906255]
[1732039200740,0.215449,92830.0,92821.0,0.107733]
[1732039200943,0.107723,92831.0,92814.0,0.10906255]
[1732039201167,0.107723,92831.0,92824.0,0.107729]
[1732039201377,0.107723,92830.0,92824.0,0.107729]
[1732039201743,0.1085768,92832.0,92824.0,0.107729]
[1732039201955,0.107723,92831.0,92824.0,0.107729]
[1732039202179,0.1085758,92832.0,92825.0,0.107728]
[1732039202405,0.107722,92831.0,92825.0,0.107728]
[1732039202624,0.1085768,92832.0,92826.0,0.107728]
[1732039202843,0.1085758,92832.0,92824.0,0.107729]
[1732039203078,0.1085758,92832.0,92825.0,0.107728]
[1732039203306,0.0008548,92832.0,92807.0,0.0452]
[1732039203511,0.00672381,92831.0,92823.0,0.107731]
[1732039203944,0.0008548,92832.0,92800.0,0.1]
[1732039204153,0.215445,92831.0,92807.0,0.10775]
[1732039204394,0.107741,92815.0,92808.0,0.107748]
[1732039204613,0.107743,92813.0,92799.0,0.075]
[1732039204818,0.107743,92813.0,92790.0,0.075]
[1732039205048,0.107743,92813.0,92784.0,0.0468]
[1732039205256,0.130743,92813.0,92793.0,0.107766]
[1732039205747,0.130743,92813.0,92791.0,0.107768]
[1732039205949,0.130743,92813.0,92790.0,0.107769]
[1732039206180,0.130743,92813.0,92785.0,0.107774]
[1732039206181,0.2006817,92813.0,92792.0,0.107767]
[1732039206369,0.2006817,92813.0,92793.0,0.107765]
[1732039206573,0.2006817,92813.0,92792.0,0.107767]
[1732039209225,0.107743,92813.0,92812.0,0.0017096]
[1732039209445,0.215482,92815.0,92812.0,0.0017096]
[1732039209668,0.04325694,92817.0,92812.0,0.0017096]
[1732039209897,0.130743,92813.0,92812.0,0.0017096]
[1732039210128,0.107743,92813.0,92812.0,0.0017096]
[1732039210538,0.23980555,92813.0,92812.0,0.0017096]
[1732039210786,0.41830555,92813.0,92812.0,0.0017096]
[1732039212371,0.46470555,92813.0,92812.0,0.0017096]
[1732039212688,0.215512,92802.0,92761.0,0.182903]
[1732039212786,0.215521,92798.0,92761.0,0.182903]
[1732039213021,0.107782,92780.0,92774.0,0.107788]
[1732039213253,0.1,92800.0,92775.0,0.10906255]
[1732039213480,0.01,92804.0,92766.0,0.12465288]
[1732039213714,0.10906255,92801.0,92774.0,0.107788]
[1732039213932,0.107767,92793.0,92786.0,0.107774]
[1732039214145,0.107768,92792.0,92785.0,0.21555]
[1732039214385,0.1,92798.0,92774.0,0.10906255]
[1732039214633,0.107776,92785.0,92778.0,0.107783]
[1732039214851,0.107771,92789.0,92782.0,0.107778]
[1732039215078,0.107775,92786.0,92780.0,0.107781]
[1732039215297,0.1,92800.0,92779.0,0.107782]
[1732039215524,0.1,92798.0,92779.0,0.107782]
[1732039215753,0.107775,92786.0,92780.0,0.107781]
[1732039215980,0.1,92800.0,92779.0,0.107782]
[1732039216202,0.107775,92786.0,92779.0,0.107782]
[1732039216453,0.1,92800.0,92775.0,0.107787]
[1732039216454,0.1,92800.0,92781.0,0.10778]
[1732039216670,0.1,92800.0,92783.0,0.107778]
[1732039216671,0.215526,92796.0,92783.0,0.107778]
[1732039216893,0.107771,92790.0,92783.0,0.107778]
[1732039217106,0.107771,92789.0,92782.0,0.107779]
[1732039217322,0.1,92798.0,92778.0,0.107783]
[1732039217545,0.107781,92781.0,92762.0,0.01]
[1732039217792,0.1,92798.0,92762.0,0.01]
[1732039217793,0.215546,92788.0,92762.0,0.01]
[1732039218008,0.12465288,92789.0,92765.0,0.107798]
[1732039218222,0.12465288,92789.0,92768.0,0.107795]
[1732039218466,0.215547,92787.0,92768.0,0.107795]
[1732039218686,0.215526,92796.0,92773.0,0.1094994]
[1732039218906,0.10906255,92796.0,92775.0,0.107786]
[1732039219124,0.10906255,92796.0,92784.0,0.107776]
[1732039219344,0.10906255,92796.0,92782.0,0.107779]
[1732039219561,0.215543,92789.0,92773.0,0.0017104]
[1732039219788,0.107781,92781.0,92775.0,0.107786]
[1732039220010,0.10906255,92796.0,92773.0,0.0017104]
[1732039220229,0.107777,92785.0,92778.0,0.107783]
[1732039220455,0.215549,92786.0,92773.0,0.1094994]
[1732039220675,0.10906255,92796.0,92773.0,0.0017104]
[1732039220881,0.21557,92777.0,92773.0,0.0017104]
[1732039221331,0.323356,92777.0,92773.0,0.0017104]
[1732039221541,0.12465288,92789.0,92773.0,0.0017104]
[1732039221750,0.107788,92774.0,92773.0,0.0017104]
[1732039223704,0.15188682,92774.0,92773.0,0.0017104]
[1732039224179,0.28394937,92774.0,92773.0,0.0017104]
[1732039224400,0.45144937,92774.0,92773.0,0.0017104]
[1732039224610,0.53114937,92774.0,92773.0,0.0017104]
[1732039225466,0.53114937,92774.0,92734.0,0.08]
[1732039225467,0.1,92765.0,92734.0,0.08]
[1732039225674,0.1078,92765.0,92735.0,0.10906255]
[1732039225884,0.1,92766.0,92735.0,0.10906255]
[1732039226093,0.2156,92764.0,92735.0,0.10906255]
[1732039226325,0.1,92766.0,92754.0,0.107811]
[1732039226536,0.1,92766.0,92752.0,0.107813]
[1732039226775,0.1,92766.0,92735.0,0.10906255]
[1732039226982,0.107807,92759.0,92749.0,0.107816]
[1732039227199,0.107807,92759.0,92751.0,0.107814]
[1732039227410,0.107804,92761.0,92752.0,0.107814]
[1732039227628,0.107805,92760.0,92752.0,0.107814]
[1732039228313,0.215603,92763.0,92749.0,0.107816]
[1732039228542,0.12465288,92759.0,92737.0,0.107831]
[1732039228759,0.12465288,92759.0,92725.0,0.02]
[1732039228760,0.12465288,92759.0,92728.0,0.04403553]
[1732039228977,0.107807,92758.0,92741.0,0.107826]
[1732039229201,0.107807,92758.0,92724.0,0.0827]
[1732039229202,0.12465288,92745.0,92724.0,0.0827]
[1732039229413,0.107837,92732.0,92717.0,0.0017094]
[1732039229623,0.12465288,92736.0,92717.0,0.0017094]
[1732039229845,0.12465288,92736.0,92720.0,0.10785]
[1732039230060,0.215652,92742.0,92715.0,0.00119848]
[1732039230270,0.107837,92732.0,92724.0,0.107846]
[1732039230482,0.107837,92732.0,92726.0,0.107844]
[1732039230714,0.107836,92733.0,92726.0,0.107844]
[1732039230931,0.12465288,92743.0,92723.0,0.107847]
[1732039230932,0.34030188,92743.0,92723.0,0.107847]
[1732039231151,0.107839,92731.0,92723.0,0.107847]
[1732039231358,0.215669,92735.0,92723.0,0.107848]
[1732039231575,0.107838,92732.0,92724.0,0.107846]
[1732039231788,0.10906255,92742.0,92724.0,0.107846]
[1732039231789,0.107839,92731.0,92724.0,0.107846]
[1732039232208,0.215658,92739.0,92727.0,0.107842]
[1732039232423,0.107829,92740.0,92727.0,0.107842]
[1732039232635,0.107833,92736.0,92727.0,0.107842]
[1732039232841,0.1531593,92745.0,92730.0,0.107839]
[1732039233055,0.107831,92738.0,92730.0,0.107839]
[1732039233261,0.215652,92742.0,92730.0,0.107839]
[1732039233470,0.107832,92737.0,92729.0,0.10784]
[1732039233673,0.107833,92736.0,92729.0,0.10784]
[1732039233880,0.215662,92738.0,92729.0,0.10784]
[1732039233881,0.107832,92737.0,92729.0,0.10784]
[1732039234104,0.215649,92744.0,92731.0,0.107838]
[1732039234345,0.107831,92737.0,92730.0,0.107839]
[1732039234554,0.107831,92738.0,92731.0,0.107838]
[1732039234755,0.107831,92738.0,92732.0,0.107836]
[1732039234990,0.215665,92736.0,92716.0,0.10906255]
[1732039235424,0.0779,92737.0,92721.0,0.10785]
[1732039235425,0.107844,92727.0,92721.0,0.10785]
[1732039235677,0.107844,92727.0,92706.0,0.01]
[1732039235678,0.107844,92727.0,92720.0,0.10785]
[1732039235860,0.107844,92727.0,92721.0,0.10785]
[1732039236098,0.107841,92729.0,92721.0,0.215698]
[1732039236308,0.12465288,92735.0,92707.0,0.10906255]
[1732039236516,0.107842,92728.0,92724.0,0.0017102]
[1732039236737,0.12465288,92735.0,92724.0,0.0017102]
[1732039236982,0.107845,92725.0,92724.0,0.0017102]
[1732039237865,0.23990755,92725.0,92724.0,0.0017102]
[1732039239608,0.28283246,92725.0,92724.0,0.0017102]
[1732039243805,0.15076991,92725.0,92724.0,0.0017102]
[1732039244666,0.043111,92737.0,92724.0,0.0017102]
[1732039244897,0.043111,92737.0,92734.0,0.107834]
[1732039245123,0.169746,92749.0,92728.0,0.107841]
[1732039245338,0.215633,92750.0,92730.0,0.107838]
[1732039245546,0.0893292,92751.0,92730.0,0.107838]
[1732039245547,0.21565,92743.0,92733.0,0.107835]
[1732039245759,0.215652,92742.0,92732.0,0.107837]
[1732039246075,0.215644,92746.0,92729.0,0.10784]
[1732039246304,0.215643,92746.0,92734.0,0.107835]
[1732039246516,0.3049612,92751.0,92750.0,0.107816]
[1732039246517,0.0432292,92751.0,92750.0,0.107816]
[1732039246739,0.0814,92776.0,92755.0,0.10781]
[1732039246971,0.04301045,92757.0,92756.0,0.107809]
[1732039247212,0.107796,92768.0,92760.0,0.107804]
[1732039247459,0.04348733,92776.0,92749.0,0.12465288]
[1732039247711,0.04348733,92776.0,92750.0,0.21687855]
[1732039247930,0.107786,92777.0,92768.0,0.107795]
[1732039248153,0.12465288,92795.0,92774.0,0.107788]
[1732039248393,0.25866983,92786.0,92752.0,0.215628]
[1732039248616,0.107781,92780.0,92753.0,0.10906255]
[1732039248842,0.12465288,92788.0,92754.0,0.107812]
[1732039249063,0.12465288,92781.0,92764.0,0.107799]
[1732039249305,0.107787,92776.0,92768.0,0.107794]
[1732039249792,0.107788,92775.0,92768.0,0.107794]
[1732039249970,0.107789,92774.0,92766.0,0.107797]
[1732039250199,0.12465288,92781.0,92766.0,0.107797]
[1732039250200,0.12465288,92781.0,92768.0,0.107795]
[1732039250440,0.107788,92775.0,92768.0,0.107795]
[1732039250647,0.04385097,92781.0,92767.0,0.12465288]
[1732039250953,0.04385097,92781.0,92780.0,0.107781]
[1732039251162,0.215529,92795.0,92780.0,0.10778]
[1732039251163,0.107769,92791.0,92780.0,0.10778]
[1732039251377,0.107769,92791.0,92768.0,0.107795]
[1732039251378,0.04263981,92789.0,92773.0,0.107789]
[1732039251601,0.107775,92786.0,92773.0,0.107789]
[1732039251821,0.107771,92789.0,92778.0,0.107783]
[1732039252040,0.04403461,92791.0,92778.0,0.107784]
[1732039252265,0.10906255,92796.0,92768.0,0.0831]
[1732039252266,0.107774,92787.0,92776.0,0.107785]
[1732039252453,0.107774,92787.0,92777.0,0.107785]
[1732039252781,0.107774,92787.0,92778.0,0.107783]
[1732039253216,0.215544,92789.0,92778.0,0.107783]
[1732039253429,0.215544,92789.0,92772.0,0.10779]
[1732039253655,0.215544,92789.0,92777.0,0.107785]
[1732039253656,0.107774,92787.0,92777.0,0.107785]
[1732039253877,0.323316,92789.0,92778.0,0.107783]
[1732039254089,0.215533,92793.0,92777.0,0.107785]
[1732039254312,0.107773,92787.0,92777.0,0.107784]
[1732039254535,0.107772,92788.0,92777.0,0.107784]
[1732039254767,0.215533,92793.0,92777.0,0.107784]
[1732039254982,0.107771,92789.0,92779.0,0.107782]
[1732039255200,0.215533,92793.0,92777.0,0.107784]
[1732039255423,0.15188162,92796.0,92768.0,0.0831]
[1732039255424,0.107782,92780.0,92770.0,0.107792]
[1732039255638,0.1,92795.0,92768.0,0.0831]
[1732039255853,0.15188162,92796.0,92761.0,0.107803]
[1732039255854,0.023,92793.0,92761.0,0.107803]
[1732039256130,0.107785,92778.0,92760.0,0.107805]
[1732039256340,0.107784,92778.0,92769.0,0.107793]
[1732039256572,0.21554,92790.0,92769.0,0.215587]
[1732039256790,0.10906255,92789.0,92758.0,0.078]
[1732039257021,0.023,92788.0,92769.0,0.107793]
[1732039257242,0.107785,92777.0,92767.0,0.107796]
[1732039257464,0.107787,92776.0,92767.0,0.107796]
[1732039257681,0.10906255,92787.0,92767.0,0.107796]
[1732039257682,0.215566,92779.0,92767.0,0.107796]
[1732039257899,0.107785,92777.0,92767.0,0.107796]
[1732039258114,0.215566,92779.0,92767.0,0.107796]
[1732039258344,0.215566,92779.0,92761.0,0.107802]
[1732039258564,0.01,92797.0,92763.0,0.107801]
[1732039258787,0.1,92794.0,92771.0,0.107792]
[1732039258999,0.1,92794.0,92764.0,0.10906255]
[1732039259000,0.107784,92778.0,92764.0,0.10906255]
[1732039259217,0.215556,92783.0,92760.0,0.12465288]
[1732039259488,0.215558,92783.0,92768.0,0.107794]
[1732039259679,0.023,92790.0,92758.0,0.078]
[1732039259895,0.08806255,92782.0,92755.0,0.10781]
[1732039260108,0.08806255,92782.0,92759.0,0.107805]
[1732039260325,0.1,92790.0,92760.0,0.10906255]
[1732039260790,0.107783,92779.0,92769.0,0.107793]
[1732039261002,0.107786,92777.0,92767.0,0.107796]
[1732039261224,0.107781,92780.0,92761.0,0.107803]
[1732039261442,0.0008555,92781.0,92762.0,0.10906255]
[1732039261651,0.0008555,92781.0,92774.0,0.107788]
[1732039262289,0.0008555,92781.0,92775.0,0.107787]
[1732039262565,0.0008555,92781.0,92763.0,0.0781]
[1732039262780,0.04398869,92781.0,92780.0,0.107781]
[1732039262993,0.0008555,92781.0,92780.0,0.107781]
[1732039265572,0.0008555,92781.0,92776.0,0.107786]
[1732039265795,0.0008555,92781.0,92775.0,0.107786]
[1732039266337,0.0008555,92781.0,92780.0,0.107781]
[1732039267000,0.0008555,92781.0,92776.0,0.107786]
[1732039267449,0.0008555,92781.0,92777.0,0.107784]
[1732039267674,0.0008555,92781.0,92778.0,0.107784]
[1732039267946,0.0008555,92781.0,92766.0,0.107797]
[1732039268163,0.0008555,92781.0,92757.0,0.107808]